[Event "WYCC 2018 G14"]
[Site "Halkidiki"]
[Date "2018.10.21"]
[Round "2"]
[White "Divya Deshmukh"]
[Black "Zhu, Evelyn"]
[Result "1-0"]
[ECO "B42"]
[WhiteElo "2180"]
[BlackElo "1926"]
[Annotator "NA"]
[PlyCount "57"]
[EventDate "2018.10.20"]
[EventType "swiss"]
[EventCountry "GRE"]
[SourceTitle "playchess.com"]
[Source "ChessBase"]
[SourceQuality "1"]
[TimeControl "40/5400+30:1800+30"]

1. e4 {[%emt 0:00:00]} c5 {[%emt 0:00:00]} 2. Nf3 {[%emt 0:00:00]} e6 {[%emt 0:00:00]} 3. d4 {[%emt 0:00:00]} cxd4 {[%emt 0:00:00]} 4. Nxd4 {[%emt 0:00:00]} a6 {[%emt 0:00:00]} 5. Bd3 {[%emt 0:00:00]} Bc5 {[%emt 0:00:09]} 6. Nb3 {[%emt 0:00:13]} Be7 {[%emt 0:00:06]} 7. Qg4 {[%emt 0:00:24]} g6 {[%emt 0:00:09]} 8. O-O {[%emt 0:01:31] B42: Sizilianisch (Paulsen-Variante)} d6 {[%emt 0:03:30]} 9. Qe2 {[%emt 0:00:34]} Nc6 {[%emt 0:01:38]} 10. c4 {[%emt 0:03:22]} Nf6 {[%emt 0:02:57]} 11. Bh6 {[%emt 0:00:32]} Ne5 {[%emt 0:01:47]} 12. Nc3 {[%emt 0:03:25]} Nfg4 {[%emt 0:05:13]} 13. Bg7 {[%emt 0:02:53]} Rg8 {[%emt 0:00:34]} 14. Bxe5 {[%emt 0:00:06]} Nxe5 {[%emt 0:00:23]} 15. f4 {[%emt 0:00:48]} Nxd3 {[%emt 0:05:15]} 16. Qxd3 {[%emt 0:00:07]} Bd7 {[%emt 0:01:10]} 17. Kh1 {[%emt 0:02:53]} Qc7 {[%emt 0:03:31]} 18. Rac1 {[%emt 0:04:01]} Rc8 {[%emt 0:05:48]} 19. Nd1 $146 {[%emt 0:04:22]} ({Vorgänger:} 19. Nd2 Qb6 20. b3 Qa5 21. Rce1 Bc6 22. Re2 f5 {½-½ (22) Guliyev,N (2453)-Svidler,P (2747) France 2004}) 19... b6 {[%emt 0:06:09]} 20. Ne3 {[%emt 0:06:31]} Qb7 {[%emt 0:03:27]} 21. Nd4 {[%emt 0:00:38]} h5 {[%emt 0:11:25]} 22. b4 {[%emt 0:02:50]} Rc7 {[%emt 0:05:42]} 23. Rc2 {[%emt 0:03:32]} Qa8 $16 {[%emt 0:02:13]} (23... h4 $142) 24. f5 {[%emt 0:04:36]} Bg5 {[%emt 0:04:44]} 25. fxe6 {[%emt 0:02:14]} fxe6 {[%emt 0:01:13]} 26. Rcf2 {[%emt 0:04:45]} Bc8 {[%emt 0:04:10]} 27. b5 {[%emt 0:05:17]} Bxe3 {[%emt 0:11:21]} 28. Qxe3 {[%emt 0:00:32]} Rxc4 {[%emt 0:01:42]} 29. Qh6 {[%emt 0:03:14]} 1-0

[Event "WYCC 2018 G14"]
[Site "Halkidiki"]
[Date "2018.10.21"]
[Round "2"]
[White "Allahverdiyeva, Ayan"]
[Black "Nguyen, Thien Ngan"]
[Result "1/2-1/2"]
[ECO "C88"]
[WhiteElo "2116"]
[BlackElo "1888"]
[Annotator "NA"]
[PlyCount "86"]
[EventDate "2018.10.20"]
[EventType "swiss"]
[EventCountry "GRE"]
[SourceTitle "playchess.com"]
[Source "ChessBase"]
[SourceQuality "1"]
[TimeControl "40/5400+30:1800+30"]

1. e4 {[%emt 0:05:05]} e5 {[%emt 0:00:00]} 2. Nf3 {[%emt 0:00:03]} Nc6 {[%emt 0:00:00]} 3. Bb5 {[%emt 0:00:03]} a6 {[%emt 0:00:00]} 4. Ba4 {[%emt 0:00:04]} Nf6 {[%emt 0:00:04]} 5. O-O {[%emt 0:00:11]} Be7 {[%emt 0:00:10]} 6. Re1 {[%emt 0:00:04]} b5 {[%emt 0:00:25]} 7. Bb3 {[%emt 0:00:04]} O-O {[%emt 0:00:14]} 8. a4 {[%emt 0:00:32]} b4 {[%emt 0:03:25]} 9. d3 {[%emt 0:00:21]} d6 {[%emt 0:00:29]} 10. h3 {[%emt 0:00:54]} Na5 {[%emt 0:03:32] C88: Closed Ruy Lopez: Anti-Marshall Systems} (10... Be6 11. Bxe6 fxe6 12. Nbd2 Qe8 13. c3 Rb8 14. d4 bxc3 15. bxc3 exd4 16. cxd4 Nb4 17. e5 Nfd5 18. Ne4 {½-½ (70) Sjugirov,S (2667)-Sasikiran,K (2637) Moscow 2016}) 11. Nbd2 {[%emt 0:05:05]} Nd7 $146 {[%emt 0:01:19]} ({Predecessor:} 11... Nxb3 12. Nxb3 c5 13. Nbd2 Nd7 14. c3 a5 15. d4 cxd4 16. cxd4 Qc7 17. b3 Ba6 18. Bb2 {1-0 (44) Matinian,N (2354)-Basencyan,M (2127) Jermuk 2010}) 12. Ba2 {[%emt 0:04:04]} Nb6 {[%emt 0:01:58]} 13. d4 {[%emt 0:03:21]} exd4 {[%emt 0:03:07]} 14. Nxd4 {[%emt 0:00:37]} Bf6 {[%emt 0:01:29]} 15. N2b3 {[%emt 0:03:30]} Nxb3 {[%emt 0:04:52]} 16. cxb3 {[%emt 0:06:05]} a5 {[%emt 0:05:23]} 17. Bb1 {[%emt 0:03:02]} Re8 {[%emt 0:01:35]} 18. Bf4 {[%emt 0:08:42]} Bb7 {[%emt 0:07:12]} 19. Bc2 {[%emt 0:08:05]} Nd7 {[%emt 0:02:22]} 20. Kh2 {[%emt 0:05:47]} Nc5 {[%emt 0:04:03]} 21. f3 {[%emt 0:00:16]} Bxd4 {[%emt 0:03:28]} 22. Qxd4 {[%emt 0:00:34]} Ne6 {[%emt 0:00:14]} 23. Qd2 {[%emt 0:01:11]} Qf6 {[%emt 0:01:25]} 24. Be3 {[%emt 0:05:50]} Qxb2 {[%emt 0:06:33]} 25. f4 {[%emt 0:12:50]} Rad8 {[%emt 0:08:44]} 26. f5 {[%emt 0:02:04]} Nc5 {[%emt 0:01:09]} 27. Rab1 {[%emt 0:07:46]} Qe5+ {[%emt 0:02:17]} 28. Bf4 {[%emt 0:03:20]} Qc3 {[%emt 0:01:27]} 29. Qxc3 {[%emt 0:01:21]} bxc3 {[%emt 0:00:11]} 30. b4 {[%emt 0:00:19]} Bxe4 {[%emt 0:08:46]} 31. Bxe4 {[%emt 0:03:13]} Nxe4 {[%emt 0:00:24]} 32. bxa5 {[%emt 0:00:11]} Nc5 {[%emt 0:02:17]} 33. Rxe8+ {[%emt 0:00:15]} Rxe8 {[%emt 0:00:05]} 34. Rb4 {[%emt 0:05:46]} d5 {[%emt 0:02:59]} 35. Rb5 {[%emt 0:00:38]} Nxa4 $11 {[%emt 0:13:47]} 36. Rxd5 {[%emt 0:02:33]} h6 {[%emt 0:04:54]} 37. a6 {[%emt 0:02:13]} c2 {[%emt 0:01:28]} 38. Rd7 {[%emt 0:01:18]} Re4 {[%emt 0:04:06]} 39. Rxc7 {[%emt 0:01:12]} Rxf4 {[%emt 0:01:23]} 40. Rxc2 {[%emt 0:00:00]} Rxf5 {[%emt 0:00:00]} 41. a7 {[%emt 0:02:15]} Nb6 {[%emt 0:01:52]} 42. Rb2 {[%emt 0:00:31]} Ra5 {[%emt 0:00:05]} 43. Rxb6 {[%emt 0:00:03]} Rxa7 {[%emt 0:00:05]} 1/2-1/2

[Event "WYCC 2018 G14"]
[Site "Halkidiki"]
[Date "2018.10.21"]
[Round "2"]
[White "Garifullina, Leya"]
[Black "Ehsani, Yassamin"]
[Result "1-0"]
[ECO "B42"]
[WhiteElo "2106"]
[BlackElo "1875"]
[Annotator "NA"]
[PlyCount "65"]
[EventDate "2018.10.20"]
[EventType "swiss"]
[EventCountry "GRE"]
[SourceTitle "playchess.com"]
[Source "ChessBase"]
[SourceQuality "1"]
[TimeControl "40/5400+30:1800+30"]

1. e4 c5 2. Nf3 e6 3. d4 cxd4 4. Nxd4 a6 5. Bd3 Nf6 6. O-O Qc7 7. Qe2 d6 8. c4 g6 9. Nc3 Bg7 10. Nf3 Nc6 11. Bg5 O-O 12. Rac1 Ne5 13. Nxe5 dxe5 $16 14. Be3 Nd7 15. b4 f5 16. f3 Rd8 17. Rfd1 f4 18. Bf2 Bf8 19. Qb2 b6 20. Qb3 Re8 21. Bf1 a5 22. Nb5 Qc6 23. a3 Ba6 24. Rc2 axb4 25. axb4 Nf6 26. Rcd2 Be7 27. Nd6 Red8 28. b5 Qc7 29. c5 Bxd6 30. cxd6 Qd7 31. bxa6 Rdc8 32. Bb5 Qf7 33. Bc4 1-0

[Event "WYCC 2018 G14"]
[Site "Halkidiki"]
[Date "2018.10.21"]
[Round "2"]
[White "Wen, Yili"]
[Black "Behzad Nazif, Parva"]
[Result "1-0"]
[ECO "A38"]
[WhiteElo "2083"]
[BlackElo "1859"]
[Annotator "NA"]
[PlyCount "103"]
[EventDate "2018.10.20"]
[EventType "swiss"]
[EventCountry "GRE"]
[SourceTitle "playchess.com"]
[Source "ChessBase"]
[SourceQuality "1"]
[TimeControl "40/5400+30:1800+30"]

1. Nf3 {[%emt 0:00:00]} c5 {[%emt 0:00:53]} 2. c4 {[%emt 0:00:35]} Nf6 {[%emt 0:00:15]} 3. Nc3 {[%emt 0:00:15]} Nc6 {[%emt 0:00:12]} 4. g3 {[%emt 0:00:20]} g6 {[%emt 0:00:08]} 5. Bg2 {[%emt 0:00:03]} Bg7 {[%emt 0:00:09]} 6. d4 {[%emt 0:00:05]} cxd4 {[%emt 0:00:06]} 7. Nxd4 {[%emt 0:00:04]} O-O {[%emt 0:00:10]} 8. O-O {[%emt 0:00:03]} Nxd4 {[%emt 0:00:33]} 9. Qxd4 {[%emt 0:00:06]} d6 {[%emt 0:00:08]} 10. Qd3 {[%emt 0:00:04]} a6 {[%emt 0:00:13]} 11. Bd2 {[%emt 0:02:16]} Rb8 {[%emt 0:01:03]} 12. a4 {[%emt 0:03:37]} Bd7 {[%emt 0:03:36] A39: Englische Eröffnung (Symmetrische Variante)} (12... Nd7 13. Qc2 Ne5 14. b3 Bf5 15. e4 Bg4 16. f4 Nc6 17. h3 Bd7 18. Kh2 b5 19. cxb5 axb5 20. Nxb5 Bxa1 21. Rxa1 {½-½ (41) Efimenko,Z (2689)-Macieja,B (2614) Lublin 2012}) 13. h3 {[%emt 0:13:33]} Bc6 {[%emt 0:02:03]} 14. e4 {[%emt 0:04:20]} a5 {[%emt 0:04:54] [#]} 15. b3 $146 {[%emt 0:03:10]} ({Vorgänger:} 15. Nd5 Nd7 16. Bc3 Nc5 17. Qc2 Bxc3 18. Nxc3 e5 19. Rfd1 Ne6 20. Ne2 Qc7 {½-½ (20) Legky,N (2525)-Savon,V (2435) Orel 1994}) 15... Nd7 {[%emt 0:02:54]} 16. Rab1 {[%emt 0:01:30]} Nc5 {[%emt 0:01:29]} 17. Qe2 {[%emt 0:10:38]} Qc7 {[%emt 0:17:36]} 18. Nd5 {[%emt 0:03:13]} Bxd5 {[%emt 0:00:37]} 19. exd5 {[%emt 0:00:07]} Rfe8 {[%emt 0:04:23]} 20. Rfe1 {[%emt 0:06:01]} b6 {[%emt 0:02:12]} 21. Be3 {[%emt 0:03:11]} Qd7 {[%emt 0:02:53]} 22. Qd2 {[%emt 0:01:01]} Qc7 {[%emt 0:03:14]} 23. Bg5 {[%emt 0:01:07]} Rb7 {[%emt 0:03:18]} 24. h4 {[%emt 0:03:06]} Qd7 {[%emt 0:04:33]} 25. h5 {[%emt 0:12:43]} Qf5 {[%emt 0:04:42]} 26. h6 {[%emt 0:13:56]} Be5 {[%emt 0:02:17]} 27. Be3 {[%emt 0:00:25]} Qd3 {[%emt 0:07:13]} 28. Qxd3 {[%emt 0:05:15]} Nxd3 {[%emt 0:00:07]} 29. Re2 {[%emt 0:01:40]} Nc5 {[%emt 0:03:08]} 30. g4 {[%emt 0:06:24]} Nd3 {[%emt 0:03:48]} 31. Ra2 {[%emt 0:04:28]} Rc8 {[%emt 0:03:20]} 32. Bf1 {[%emt 0:00:07]} Nc5 {[%emt 0:02:26]} 33. Kg2 {[%emt 0:01:06]} Ne4 {[%emt 0:00:54]} 34. Rc1 {[%emt 0:00:57]} Nc5 {[%emt 0:01:05]} 35. Rb1 {[%emt 0:00:05]} Ne4 {[%emt 0:00:05]} 36. Rc2 {[%emt 0:01:02]} Nf6 {[%emt 0:01:33]} 37. Kh3 {[%emt 0:00:30]} Ne4 {[%emt 0:04:57]} 38. Bg2 {[%emt 0:00:33]} Nc5 {[%emt 0:00:39]} 39. f4 {[%emt 0:00:18]} Bh8 {[%emt 0:01:13]} 40. Re2 {[%emt 0:00:00]} Rcc7 {[%emt 0:00:00]} 41. Bf2 {[%emt 0:02:55]} Nd3 {[%emt 0:06:29]} 42. Bg3 {[%emt 0:00:24]} f5 {[%emt 0:03:18] [#]} 43. gxf5 $1 {[%emt 0:06:28]} gxf5 {[%emt 0:00:08]} 44. Re3 {[%emt 0:00:17]} Nc5 {[%emt 0:00:55]} 45. Bh4 {[%emt 0:02:31]} Kf7 {[%emt 0:05:39]} 46. Bf3 {[%emt 0:01:01]} Bd4 {[%emt 0:06:08]} 47. Re2 {[%emt 0:03:56]} Nd3 {[%emt 0:02:59]} 48. Bh5+ {[%emt 0:02:59]} Kf8 {[%emt 0:00:45]} 49. Rf1 {[%emt 0:00:08]} Nc5 {[%emt 0:01:39]} 50. Rd1 {[%emt 0:06:13]} Bh8 {[%emt 0:06:24]} (50... Nxb3 $142 51. Rd3 Rxc4) 51. Rg2 {[%emt 0:01:18]} e5 {[%emt 0:04:24]} 52. Rdg1 $18 {[%emt 0:02:14]} 1-0

[Event "WYCC 2018 G14"]
[Site "Halkidiki"]
[Date "2018.10.21"]
[Round "2"]
[White "Dylag, Emilia"]
[Black "Kouta, Antonia"]
[Result "1-0"]
[ECO "A05"]
[WhiteElo "2059"]
[BlackElo "1812"]
[Annotator "NA"]
[PlyCount "49"]
[EventDate "2018.10.20"]
[EventType "swiss"]
[EventCountry "GRE"]
[SourceTitle "playchess.com"]
[Source "ChessBase"]
[SourceQuality "1"]
[TimeControl "40/5400+30:1800+30"]

1. Nf3 {[%emt 0:00:00]} Nf6 {[%emt 0:00:00]} 2. g3 {[%emt 0:00:00]} b5 {[%emt 0:03:34]} 3. Bg2 {[%emt 0:00:47]} Bb7 {[%emt 0:01:17]} 4. d3 {[%emt 0:01:38]} e6 {[%emt 0:03:22]} 5. O-O {[%emt 0:01:16]} Be7 {[%emt 0:04:31]} 6. e4 {[%emt 0:03:22]} d6 {[%emt 0:10:14] LiveBook: 155 Games} 7. Nc3 {[%emt 0:04:35]} b4 {[%emt 0:06:07]} 8. Ne2 {[%emt 0:00:31]} O-O {[%emt 0:01:27]} 9. h3 {[%emt 0:03:31]} Nbd7 {[%emt 0:05:02]} 10. g4 {[%emt 0:02:20]} c5 {[%emt 0:04:56]} 11. Ng3 {[%emt 0:07:49]} Qc7 {[%emt 0:04:38]} 12. Re1 {[%emt 0:02:05]} Ne5 {[%emt 0:03:22]} 13. Nh2 $15 {[%emt 0:07:12]} Nc6 {[%emt 0:04:46]} 14. f4 {[%emt 0:04:15]} e5 {[%emt 0:07:55]} 15. f5 {[%emt 0:02:54]} h6 {[%emt 0:02:01]} 16. g5 {[%emt 0:13:18]} hxg5 {[%emt 0:02:30]} 17. Bxg5 {[%emt 0:00:36]} Nh7 {[%emt 0:02:39]} 18. Be3 {[%emt 0:00:52]} Qd8 {[%emt 0:02:29]} 19. Nh5 {[%emt 0:07:55]} Bg5 {[%emt 0:03:26]} 20. Qg4 {[%emt 0:02:12]} Bf6 {[%emt 0:05:49]} 21. Bh6 {[%emt 0:03:12]} g6 {[%emt 0:06:33]} 22. fxg6 {[%emt 0:04:20]} Bc8 {[%emt 0:05:05]} 23. Qg3 {[%emt 0:10:43]} fxg6 {[%emt 0:03:56]} 24. Qxg6+ {[%emt 0:00:12]} Kh8 {[%emt 0:00:06]} 25. Bg7+ {[%emt 0:00:16]} 1-0

[Event "WYCC 2018 G14"]
[Site "Halkidiki"]
[Date "2018.10.21"]
[Round "2"]
[White "Mehmed, Elif"]
[Black "Obada, Ema"]
[Result "1/2-1/2"]
[ECO "A08"]
[WhiteElo "2049"]
[BlackElo "1811"]
[Annotator "NA"]
[PlyCount "107"]
[EventDate "2018.10.20"]
[EventType "swiss"]
[EventCountry "GRE"]
[SourceTitle "playchess.com"]
[Source "ChessBase"]
[SourceQuality "1"]
[TimeControl "40/5400+30:1800+30"]

1. e4 {[%emt 0:00:00]} e6 {[%emt 0:00:00]} 2. d3 {[%emt 0:00:00]} d5 {[%emt 0:00:00]} 3. Nd2 {[%emt 0:00:00]} c5 {[%emt 0:00:20]} 4. g3 {[%emt 0:00:00]} Nc6 {[%emt 0:00:56]} 5. Bg2 {[%emt 0:00:07]} Nf6 {[%emt 0:00:57]} 6. Ngf3 {[%emt 0:00:34]} Be7 {[%emt 0:00:56]} 7. O-O {[%emt 0:00:20]} O-O {[%emt 0:01:16]} 8. Re1 {[%emt 0:01:03]} Qc7 {[%emt 0:16:04]} 9. e5 {[%emt 0:01:38]} Nd7 {[%emt 0:01:16]} 10. Qe2 {[%emt 0:00:11]} b5 {[%emt 0:00:48]} 11. h4 {[%emt 0:00:23]} b4 {[%emt 0:10:00]} 12. Nf1 {[%emt 0:01:54]} a5 {[%emt 0:03:55]} 13. Bf4 {[%emt 0:03:08]} Ba6 {[%emt 0:08:37]} 14. Ne3 {[%emt 0:05:10] LiveBook: 13 Games} c4 {[%emt 0:06:31] C00: French: Unusual White 2nd moves} 15. dxc4 {[%emt 0:21:11]} ({Better is} 15. Nxd5 exd5 16. e6) 15... dxc4 $146 {[%emt 0:00:09]} ({Predecessor:} 15... Nb6 16. Ng5 Nxc4 17. Nxd5 exd5 18. e6 Nd6 19. exf7+ Kh8 20. Qe6 Rad8 21. Qxd5 Bxg5 22. hxg5 {0-1 (32) Isakov,D (2110)-Peregudov,N (2415) Omsk/Perm 1998}) 16. Ng5 {[%emt 0:03:01]} Bxg5 {[%emt 0:08:38]} 17. hxg5 {[%emt 0:00:24]} Bb7 {[%emt 0:01:27]} 18. Nxc4 {[%emt 0:17:55]} Nd4 {[%emt 0:01:20]} 19. Qd3 {[%emt 0:00:11]} Bxg2 {[%emt 0:00:47]} 20. Kxg2 {[%emt 0:00:38]} Qc6+ {[%emt 0:00:49]} 21. Kh3 {[%emt 0:02:45]} Nf5 {[%emt 0:09:28]} 22. Rad1 {[%emt 0:04:22]} Nc5 {[%emt 0:03:26]} 23. Qe2 {[%emt 0:00:50]} Rad8 {[%emt 0:04:26]} 24. Nxa5 {[%emt 0:07:05]} Qa8 {[%emt 0:01:13]} 25. Nb3 {[%emt 0:01:24]} Na4 {[%emt 0:04:08]} 26. Bc1 {[%emt 0:06:11]} Nb6 {[%emt 0:03:20]} 27. a3 {[%emt 0:12:16]} bxa3 {[%emt 0:00:10]} 28. bxa3 {[%emt 0:00:07]} Nd5 {[%emt 0:01:05]} 29. Bb2 {[%emt 0:00:21]} Rc8 {[%emt 0:00:59]} 30. Rd3 {[%emt 0:05:45]} Rc4 {[%emt 0:00:50]} 31. Nd4 {[%emt 0:01:01]} Nxd4 {[%emt 0:02:45]} 32. Bxd4 {[%emt 0:01:10]} Rfc8 {[%emt 0:00:31]} 33. Rc1 {[%emt 0:01:31]} Qa4 {[%emt 0:00:37]} 34. Qd1 {[%emt 0:02:49]} g6 {[%emt 0:03:00]} 35. Kg2 {[%emt 0:01:10]} Qa8 {[%emt 0:01:24]} 36. Kg1 {[%emt 0:00:42]} Ra4 {[%emt 0:00:19]} 37. Bb2 {[%emt 0:00:26]} Rcc4 {[%emt 0:02:00]} 38. Qf3 {[%emt 0:00:28]} Qd8 {[%emt 0:01:07]} 39. Qe3 {[%emt 0:00:45]} Qb8 {[%emt 0:00:13]} 40. Rb3 {[%emt 0:00:00]} Qd8 {[%emt 0:00:00]} 41. Qd2 {[%emt 0:03:41]} Qc7 {[%emt 0:05:07]} 42. Rb5 {[%emt 0:12:28]} Ra6 {[%emt 0:02:24]} 43. Rb3 {[%emt 0:05:09]} Rac6 {[%emt 0:00:24]} 44. Bd4 {[%emt 0:01:57]} Rxc2 {[%emt 0:02:04]} 45. Rxc2 {[%emt 0:00:04]} Rxc2 {[%emt 0:00:05]} 46. Qd3 {[%emt 0:00:13]} Rc1+ {[%emt 0:02:06]} 47. Kh2 {[%emt 0:00:32]} Kg7 {[%emt 0:02:06]} 48. Qf3 {[%emt 0:06:42]} Rc4 {[%emt 0:04:34]} 49. Bb2 {[%emt 0:00:13]} Qa7 {[%emt 0:02:37]} 50. Rd3 {[%emt 0:01:58]} Qb7 $11 {[%emt 0:05:02]} 51. Rb3 {[%emt 0:02:34]} Qa7 {[%emt 0:00:22]} 52. Rd3 {[%emt 0:00:17]} Qb7 {[%emt 0:00:15]} 53. Rb3 {[%emt 0:01:05]} Qa7 {[%emt 0:00:05]} 54. Rd3 {[%emt 0:00:17]} 1/2-1/2

[Event "WYCC 2018 G14"]
[Site "Halkidiki"]
[Date "2018.10.21"]
[Round "2"]
[White "Dhyana Patel"]
[Black "Bardorz, Jana"]
[Result "1-0"]
[ECO "C58"]
[WhiteElo "2002"]
[BlackElo "1810"]
[Annotator "NA"]
[PlyCount "129"]
[EventDate "2018.10.20"]
[EventType "swiss"]
[EventCountry "GRE"]
[SourceTitle "playchess.com"]
[Source "ChessBase"]
[SourceQuality "1"]
[TimeControl "40/5400+30:1800+30"]

1. e4 {[%emt 0:00:00]} e5 {[%emt 0:00:00]} 2. Nf3 {[%emt 0:00:00]} Nc6 {[%emt 0:00:00]} 3. Bc4 {[%emt 0:00:12]} Nf6 {[%emt 0:00:04]} 4. Ng5 {[%emt 0:00:32]} d5 {[%emt 0:00:08]} 5. exd5 {[%emt 0:00:23]} Na5 {[%emt 0:00:07]} 6. Bb5+ {[%emt 0:00:17]} c6 {[%emt 0:00:07]} 7. dxc6 {[%emt 0:00:26]} bxc6 {[%emt 0:00:06]} 8. Bd3 {[%emt 0:00:20]} Nd5 {[%emt 0:02:24] C58: Two Knights: 4 Ng5 d5 5 exd5 Na5 sidelines} 9. Nf3 {[%emt 0:00:55]} Bd6 {[%emt 0:10:21]} 10. O-O {[%emt 0:00:29] LiveBook: 113 Games} O-O {[%emt 0:01:57]} 11. Re1 {[%emt 0:00:24]} Re8 {[%emt 0:03:13]} (11... f5 12. Nxe5 Qf6 13. Nf3 g5 14. g3 f4 15. Nc3 fxg3 16. hxg3 Nxc3 17. dxc3 {½-½ (52) Kovalev,V (2639)-Demchenko,A (2660) Riadh 2017}) 12. Nc3 {[%emt 0:03:19]} Nf4 {[%emt 0:05:27]} 13. Bf1 {[%emt 0:00:36]} Bg4 $146 {[%emt 0:07:20]} ({Predecessor:} 13... f5 14. d4 e4 15. Bxf4 Bxf4 16. b4 {1-0 (45) Ameir,M (2431)-Abdel Elah,A (2128) Egypt 2016}) 14. Ne4 {[%emt 0:02:12]} Bc7 {[%emt 0:04:56]} 15. b4 {[%emt 0:00:58]} Nb7 {[%emt 0:04:29]} 16. h3 {[%emt 0:02:52]} Bh5 {[%emt 0:05:27]} 17. Ng3 {[%emt 0:02:49]} Bg6 {[%emt 0:02:48]} 18. Bb2 {[%emt 0:01:13]} e4 $1 {[%emt 0:05:05]} 19. Nd4 {[%emt 0:00:54]} Qd6 {[%emt 0:06:00]} 20. Qg4 {[%emt 0:08:14]} h5 {[%emt 0:06:23]} 21. Qh4 {[%emt 0:08:40]} Bd8 {[%emt 0:08:16]} 22. Ngf5 {[%emt 0:00:20]} Bxh4 {[%emt 0:05:52]} 23. Nxd6 {[%emt 0:00:06]} Nxd6 {[%emt 0:01:57]} 24. g3 {[%emt 0:00:22]} Bg5 {[%emt 0:02:43]} 25. gxf4 {[%emt 0:01:49]} Bxf4 {[%emt 0:00:10]} 26. Rad1 {[%emt 0:04:50]} Be5 {[%emt 0:02:01]} 27. Ba1 {[%emt 0:02:48]} Rac8 {[%emt 0:02:32]} 28. Nb3 {[%emt 0:01:26]} Bxa1 {[%emt 0:01:35]} 29. Rxa1 {[%emt 0:00:12]} Re5 {[%emt 0:01:07]} 30. Re3 {[%emt 0:06:55]} Nf5 {[%emt 0:02:37]} 31. Rc3 {[%emt 0:00:15]} Nh4 {[%emt 0:01:46]} 32. Bg2 {[%emt 0:02:25]} f5 {[%emt 0:04:11]} 33. Re1 {[%emt 0:09:41]} f4 {[%emt 0:01:23]} 34. Rc5 {[%emt 0:01:14]} Rce8 {[%emt 0:00:57]} 35. Kh2 {[%emt 0:00:32]} Rxc5 {[%emt 0:01:49]} 36. Nxc5 {[%emt 0:00:02]} Re5 {[%emt 0:00:14]} 37. Bh1 {[%emt 0:01:21]} f3 {[%emt 0:01:13]} 38. Kg3 {[%emt 0:00:48]} Nf5+ {[%emt 0:00:52]} 39. Kf4 {[%emt 0:00:10]} Rd5 {[%emt 0:00:29]} 40. Rg1 {[%emt 0:00:00]} Kh7 {[%emt 0:00:00]} 41. Nxe4 {[%emt 0:08:57]} Nd4 {[%emt 0:02:05]} 42. c4 {[%emt 0:11:34]} Ne2+ {[%emt 0:03:21]} 43. Ke3 {[%emt 0:00:38]} Re5 {[%emt 0:01:37]} 44. Rxg6 {[%emt 0:00:18]} Kxg6 {[%emt 0:01:40]} 45. Bxf3 {[%emt 0:00:08]} Nc1 {[%emt 0:03:07]} 46. d4 {[%emt 0:01:19]} Re7 {[%emt 0:01:38]} 47. a3 {[%emt 0:00:46]} Kf5 {[%emt 0:02:59]} 48. Kd2 {[%emt 0:05:48]} Rxe4 {[%emt 0:03:25]} ({Black should try} 48... Kf4 49. Bg2 Rxe4) 49. Bxe4+ {[%emt 0:00:06]} Kxe4 {[%emt 0:00:07]} 50. Kxc1 {[%emt 0:00:21]} Kxd4 {[%emt 0:00:12]} 51. c5 {[%emt 0:00:04]} g5 $2 {[%emt 0:05:30]} (51... h4 $16 {is tougher.}) 52. f3 {[%emt 0:02:27]} a6 {[%emt 0:01:53]} 53. Kd2 {[%emt 0:04:58]} h4 {[%emt 0:02:22] [#]} 54. Kc2 $1 {[%emt 0:00:46]} Ke3 {[%emt 0:03:59] [#]} 55. a4 $1 {[%emt 0:00:42]} Kxf3 {[%emt 0:00:14]} 56. b5 {[%emt 0:00:30]} axb5 {[%emt 0:01:07]} 57. axb5 {[%emt 0:00:10]} cxb5 {[%emt 0:03:23]} 58. c6 {[%emt 0:00:11]} Kg3 {[%emt 0:00:06]} 59. c7 {[%emt 0:00:12]} Kxh3 {[%emt 0:00:06]} 60. c8=Q+ {[%emt 0:00:04]} g4 {[%emt 0:00:08]} 61. Kd2 {[%emt 0:00:23]} Kg3 {[%emt 0:00:34]} 62. Ke2 {[%emt 0:00:14]} h3 {[%emt 0:00:24]} 63. Kf1 {[%emt 0:00:22]} h2 {[%emt 0:01:01]} 64. Qc3+ {[%emt 0:00:24]} Kh4 $18 {[%emt 0:00:21]} 65. Kg2 {[%emt 0:00:06]} 1-0

[Event "WYCC 2018 G14"]
[Site "Halkidiki"]
[Date "2018.10.21"]
[Round "2"]
[White "Kamalidenova, Meruert"]
[Black "Zeng, Sheena"]
[Result "1-0"]
[ECO "A45"]
[WhiteElo "1999"]
[BlackElo "1807"]
[Annotator "NA"]
[PlyCount "69"]
[EventDate "2018.10.20"]
[EventType "swiss"]
[EventCountry "GRE"]
[SourceTitle "playchess.com"]
[Source "ChessBase"]
[SourceQuality "1"]
[TimeControl "40/5400+30:1800+30"]

1. d4 {[%emt 0:00:00] Marchand,A/Primel,D} Nf6 {[%emt 0:00:00]} 2. g3 {[%emt 0:00:00]} d5 {[%emt 0:00:21]} 3. Nf3 {[%emt 0:00:00]} e6 {[%emt 0:04:23]} 4. Bg2 {[%emt 0:00:15]} b5 {[%emt 0:00:28]} 5. O-O {[%emt 0:00:45]} Bb7 {[%emt 0:02:03]} 6. a4 {[%emt 0:01:12] A46: 1 d4 Nf6 2 Nf3 e6: Torre, London and Colle Systems} (6. Bg5 Nbd7 7. e4 dxe4 8. Nfd2 h6 9. Bxf6 Nxf6 10. Qe2 a6 11. Nxe4 Bxe4 12. Bxe4 Nxe4 13. Qxe4 Qd5 {½-½ (62) Aronian,L (2784)-Dominguez Perez,L (2732) Skopje 2015}) 6... a6 {[%emt 0:03:26]} 7. Qd3 {[%emt 0:01:53]} c6 $146 {[%emt 0:02:01]} ({Predecessor:} 7... b4 8. c4 bxc3 9. bxc3 c5 10. Nbd2 Nbd7 11. Ba3 c4 12. Qc2 Bxa3 13. Rxa3 Qc7 {½-½ (89) Nikolic,P (2596)-Motylev,A (2677) Aix les Bains 2011 CBM 142 Extra [Marchand,A/Primel,D]}) 8. b3 {[%emt 0:01:13]} b4 {[%emt 0:07:12]} 9. a5 {[%emt 0:05:31]} Nbd7 {[%emt 0:01:55]} 10. c4 {[%emt 0:02:32]} bxc3 {[%emt 0:00:40]} 11. Qxc3 {[%emt 0:02:25]} c5 {[%emt 0:02:13]} 12. Be3 {[%emt 0:03:23]} Rc8 {[%emt 0:08:16]} 13. Qb2 {[%emt 0:05:36]} Bc6 {[%emt 0:09:55]} 14. Rc1 {[%emt 0:02:08]} Bb5 {[%emt 0:12:42]} 15. Nc3 {[%emt 0:02:50]} Rb8 {[%emt 0:02:28]} 16. Nxb5 {[%emt 0:05:07]} Rxb5 {[%emt 0:00:19]} 17. dxc5 {[%emt 0:00:11]} Bxc5 {[%emt 0:04:02]} 18. Bxc5 {[%emt 0:02:28]} Rxc5 {[%emt 0:00:20]} 19. Rxc5 {[%emt 0:01:39]} Nxc5 {[%emt 0:00:07]} 20. b4 {[%emt 0:00:16]} Ncd7 {[%emt 0:02:53]} 21. b5 {[%emt 0:03:05]} axb5 {[%emt 0:01:05]} 22. a6 {[%emt 0:01:24]} O-O {[%emt 0:02:41]} 23. a7 $18 {[%emt 0:01:11]} ({Much less strong is} 23. Qxb5 $6 Qc7) 23... Nb6 {[%emt 0:01:01]} 24. Qxb5 {[%emt 0:00:14]} Nfd7 {[%emt 0:01:47]} 25. Nd4 {[%emt 0:04:05]} Qf6 {[%emt 0:08:26]} 26. e3 {[%emt 0:01:38]} Ra8 {[%emt 0:01:03]} 27. Qc6 {[%emt 0:01:57]} Qd8 {[%emt 0:03:11]} 28. Bf1 {[%emt 0:08:56]} Ne5 {[%emt 0:03:27]} 29. Qb7 {[%emt 0:01:57]} Ned7 {[%emt 0:07:37]} 30. Nc6 {[%emt 0:02:03]} Qf6 {[%emt 0:00:19]} 31. Rb1 {[%emt 0:01:18]} h5 {[%emt 0:03:46]} 32. Rxb6 {[%emt 0:00:43]} Nxb6 {[%emt 0:00:08]} 33. Qxb6 {[%emt 0:00:05]} e5 {[%emt 0:02:58]} 34. Qb8+ {[%emt 0:00:27]} Rxb8 {[%emt 0:00:09]} 35. axb8=Q+ {[%emt 0:00:11]} 1-0